fUSD/lending_fUSD_20260607
["ID","MTS","AMOUNT","RATE_DAILY","PERIOD"]
[424393295,1780826337000,-243.97013807,0.00038642,120]
[424393296,1780826337000,-500.0,0.00038642,120]
[424393297,1780826337000,-500.0,0.00038642,120]
[424393298,1780826337000,-338.58707699,0.00038642,120]
[424393299,1780826337000,-500.0,0.00038642,120]
[424393302,1780826337000,-244.34747684,0.00038642,120]
[424393301,1780826337000,-167.83494614,0.00038642,120]
[424393303,1780826337000,-379.90506443,0.00038642,120]
[424393305,1780826337000,-289.7,0.00038642,120]
[424393304,1780826337000,-245.55758841,0.00038642,120]
[424393306,1780826337000,-441.04274172,0.00038642,120]
[424393307,1780826337000,-638.08423092,0.00038642,120]
[424393308,1780826337000,-267.82369765,0.00038642,120]
[424393309,1780826337000,-500.0,0.00038642,120]
[424393310,1780826338000,-637.80743117,0.00038642,120]
[424393311,1780826338000,-500.0,0.00038642,120]
[424393312,1780826338000,-500.0,0.00038642,120]
[424393313,1780826338000,-500.0,0.00038642,120]
[424393314,1780826338000,-500.0,0.00038642,120]
[424393315,1780826338000,-438.48026315,0.00038642,120]
[424393316,1780826338000,-336.38734955,0.00038642,120]
[424393317,1780826338000,-349.02468759,0.00038642,120]
[424393318,1780826338000,-500.0,0.00038642,120]
[424393326,1780826338000,-349.48569805,0.00038642,120]
[424393320,1780826338000,-500.0,0.00038642,120]
[424393321,1780826338000,-500.0,0.00038642,120]
[424393322,1780826338000,-231.71072348,0.00038642,120]
[424393323,1780826338000,-500.0,0.00038642,120]
[424393324,1780826338000,-500.0,0.00038642,120]
[424393325,1780826338000,-500.0,0.00038642,120]
[424393327,1780826338000,-177.03376586,0.00038642,120]
[424393319,1780826338000,-276.7029534,0.00038642,120]
[424393334,1780826339000,-554.21292885,0.00038642,120]
[424393333,1780826339000,-238.79167485,0.00038642,120]
[424393331,1780826339000,-214.88221382,0.00038642,120]
[424393337,1780826339000,-500.0,0.00038642,120]
[424393329,1780826339000,-640.27902685,0.00038642,120]
[424393330,1780826339000,-293.39822919,0.00038642,120]
[424393328,1780826339000,-355.09600372,0.00038642,120]
[424393332,1780826339000,-227.05311202,0.00038642,120]
[424393335,1780826339000,-196.8407053,0.00038642,120]
[424393339,1780826339000,-500.0,0.00038642,120]
[424393338,1780826339000,-500.0,0.00038642,120]
[424393341,1780826339000,-500.0,0.00038642,120]
[424393340,1780826339000,-416.82411584,0.00038642,120]
[424393342,1780826339000,-222.84301142,0.00038642,120]
[424393343,1780826339000,-500.0,0.00038642,120]
[424393344,1780826339000,-500.0,0.00038642,120]
[424393345,1780826339000,-642.51863679,0.00038642,120]
[424393336,1780826339000,-228.48249129,0.00038642,120]
[424393350,1780826340000,-222.76541311,0.00038642,120]
[424393349,1780826340000,-500.0,0.00038642,120]
[424393351,1780826340000,-311.46714488,0.00038642,120]
[424393347,1780826340000,-482.154231,0.00038642,120]
[424393348,1780826340000,-177.93526447,0.00038642,120]
[424393353,1780826340000,-500.0,0.00038642,120]
[424393346,1780826340000,-269.29324908,0.00038642,120]
[424393354,1780826340000,-455.19788665,0.00038642,120]
[424393356,1780826340000,-218.56390097,0.00038642,120]
[424393355,1780826340000,-155.33484503,0.00038642,120]
[424393358,1780826340000,-500.0,0.00038642,120]
[424393357,1780826340000,-500.0,0.00038642,120]
[424393360,1780826340000,-621.46327038,0.00038642,120]
[424393359,1780826340000,-234.3623913,0.00038642,120]
[424393352,1780826340000,-154.05217314,0.00038642,120]
[424393361,1780826341000,-162.51417075,0.00038642,120]
[424393363,1780826341000,-500.0,0.00038642,120]
[424393362,1780826341000,-466.75290805,0.00038642,120]
[424393364,1780826341000,-235.04476755,0.00038642,120]
[424393365,1780826341000,-500.0,0.00038642,120]
[424393366,1780826341000,-570.31317652,0.00038642,120]
[424393367,1780826341000,-216.29035551,0.00038642,120]
[424393368,1780826341000,-552.10880032,0.00038642,120]
[424393377,1780826341000,-230.71090978,0.00038642,120]
[424393370,1780826341000,-500.0,0.00038642,120]
[424393372,1780826341000,-369.33476402,0.00038642,120]
[424393371,1780826341000,-243.81338748,0.00038642,120]
[424393373,1780826341000,-500.0,0.00038642,120]
[424393374,1780826341000,-500.0,0.00038642,120]
[424393375,1780826341000,-215.22322432,0.00038642,120]
[424393376,1780826341000,-411.73666967,0.00038642,120]
[424393369,1780826341000,-226.99038209,0.00038642,120]
[424393383,1780826342000,-467.01493803,0.00038642,120]
[424393381,1780826342000,-216.43135481,0.00038642,120]
[424393382,1780826342000,-500.0,0.00038642,120]
[424393384,1780826342000,-185.56805054,0.00038642,120]
[424393380,1780826342000,-508.52689027,0.00038642,120]
[424393378,1780826342000,-207.23,0.00038642,120]
[424393379,1780826342000,-617.36246757,0.00038642,120]
[424393385,1780826342000,-647.77551691,0.00038642,120]
[424393394,1780826342000,-500.0,0.00038642,120]
[424393387,1780826342000,-500.0,0.00038642,120]
[424393388,1780826342000,-169.10435519,0.00038642,120]
[424393389,1780826342000,-516.65495911,0.00038642,120]
[424393390,1780826342000,-244.91232693,0.00038642,120]
[424393392,1780826342000,-500.0,0.00038642,120]
[424393391,1780826342000,-341.01141495,0.00038642,120]
[424393393,1780826342000,-540.87989889,0.00038642,120]
[424393386,1780826342000,-500.0,0.00038642,120]
[424393400,1780826343000,-500.0,0.00038642,120]
[424393396,1780826343000,-278.06743192,0.00038642,120]
[424393395,1780826343000,-214.47998891,0.00038642,120]
[424393397,1780826343000,-500.0,0.00038642,120]
[424393399,1780826343000,-500.0,0.00038642,120]
[424393398,1780826343000,-500.0,0.00038642,120]
[424393401,1780826343000,-476.05380099,0.00038642,120]
[424393402,1780826343000,-500.0,0.00038642,120]
[424393411,1780826343000,-346.89252294,0.00038642,120]
[424393404,1780826343000,-500.0,0.00038642,120]
[424393405,1780826343000,-500.0,0.00038642,120]
[424393406,1780826343000,-199.08898505,0.00038642,120]
[424393407,1780826343000,-500.0,0.00038642,120]
[424393408,1780826343000,-500.0,0.00038642,120]
[424393409,1780826343000,-337.24,0.00038642,120]
[424393410,1780826343000,-285.92219402,0.00038642,120]
[424393403,1780826343000,-170.37164161,0.00038642,120]
[424393412,1780826344000,-500.0,0.00038642,120]
[424393413,1780826344000,-500.0,0.00038642,120]
[424393414,1780826344000,-500.0,0.00038642,120]
[424393415,1780826344000,-187.48959242,0.00038642,120]
[424393416,1780826344000,-619.6267646,0.00038642,120]
[424393418,1780826344000,-620.91859698,0.00038642,120]
[424393417,1780826344000,-195.31490812,0.00038642,120]
[424393419,1780826344000,-303.57956024,0.00038642,120]
[424393421,1780826344000,-274.94515945,0.00038642,120]
[424393422,1780826344000,-526.63836162,0.00038642,120]
[424393423,1780826344000,-500.0,0.00038642,120]
[424393424,1780826344000,-531.0694366,0.00038642,120]
[424393425,1780826344000,-500.0,0.00038642,120]
[424393426,1780826344000,-292.51503727,0.00038642,120]
[424393427,1780826344000,-500.0,0.00038642,120]
[424393428,1780826344000,-450.14362233,0.00038642,120]
[424393420,1780826344000,-500.0,0.00038642,120]
[424393434,1780826345000,-173.5231133,0.00038642,120]
[424393433,1780826345000,-230.0389226,0.00038642,120]
[424393432,1780826345000,-458.94595683,0.00038642,120]
[424393435,1780826345000,-419.3677258,0.00038642,120]
[424393430,1780826345000,-487.84111051,0.00038642,120]
[424393429,1780826345000,-287.80938982,0.00038642,120]
[424393431,1780826345000,-405.24530888,0.00038642,120]
[424393436,1780826345000,-500.0,0.00038642,120]
[424393445,1780826345000,-265.35519577,0.00038642,120]
[424393438,1780826345000,-361.75250998,0.00038642,120]
[424393444,1780826345000,-236.33388536,0.00038642,120]
[424393443,1780826345000,-500.0,0.00038642,120]
[424393442,1780826345000,-241.4713306,0.00038642,120]
[424393437,1780826345000,-442.90809881,0.00038642,120]
[424393440,1780826345000,-192.8838787,0.00038642,120]
[424393439,1780826345000,-208.20252868,0.00038642,120]
[424393441,1780826345000,-500.0,0.00038642,120]
[424393446,1780826346000,-624.01659287,0.00038642,120]
[424393447,1780826346000,-422.53981483,0.00038642,120]
[424393448,1780826346000,-380.24076395,0.00038642,120]
[424393449,1780826346000,-500.0,0.00038642,120]
[424393450,1780826346000,-283.37177673,0.00038642,120]
[424393452,1780826346000,-192.81807381,0.00038642,120]
[424393453,1780826346000,-457.27022699,0.00038642,120]
[424393451,1780826346000,-408.61396554,0.00038642,120]
[424393455,1780826346000,-621.20175621,0.00038642,120]
[424393457,1780826346000,-500.0,0.00038642,120]
[424393456,1780826346000,-316.20726182,0.00038642,120]
[424393458,1780826346000,-603.91535139,0.00038642,120]
[424393459,1780826346000,-500.0,0.00038642,120]
[424393460,1780826346000,-423.64873168,0.00038642,120]
[424393461,1780826346000,-357.21743765,0.00038642,120]
[424393462,1780826346000,-458.38964722,0.00038642,120]
[424393454,1780826346000,-238.6457748,0.00038642,120]
[424393467,1780826347000,-500.0,0.00038642,120]
[424393463,1780826347000,-430.50322398,0.00038642,120]
[424393464,1780826347000,-500.0,0.00038642,120]
[424393465,1780826347000,-279.94571243,0.00038642,120]
[424393466,1780826347000,-233.37685723,0.00038642,120]
[424393469,1780826347000,-500.0,0.00038642,120]
[424393468,1780826347000,-220.01669105,0.00038642,120]
[424393470,1780826347000,-343.61006793,0.00038642,120]
[424393478,1780826347000,-240.90530199,0.00038642,120]
[424393477,1780826347000,-205.65023793,0.00038642,120]
[424393476,1780826347000,-500.0,0.00038642,120]
[424393471,1780826347000,-613.4412,0.00038642,120]
[424393474,1780826347000,-442.96739646,0.00038642,120]
[424393473,1780826347000,-375.2272712,0.00038642,120]
[424393472,1780826347000,-573.06777741,0.00038642,120]
[424393475,1780826347000,-156.26287822,0.00038642,120]
[424393486,1780826348000,-500.0,0.00038642,120]
[424393481,1780826348000,-500.0,0.00038642,120]
[424393480,1780826348000,-392.31958186,0.00038642,120]
[424393483,1780826348000,-293.54761258,0.00038642,120]
[424393482,1780826348000,-226.36792033,0.00038642,120]
[424393484,1780826348000,-545.46127468,0.00038642,120]
[424393485,1780826348000,-500.0,0.00038642,120]
[424393479,1780826348000,-404.25817775,0.00038642,120]
[424393488,1780826348000,-163.12033006,0.00038642,120]
[424393489,1780826348000,-374.37786462,0.00038642,120]
[424393490,1780826348000,-500.0,0.00038642,120]
[424393491,1780826348000,-217.51269279,0.00038642,120]
[424393492,1780826348000,-524.96929328,0.00038642,120]
[424393493,1780826348000,-500.0,0.00038642,120]
[424393494,1780826348000,-153.80502117,0.00038642,120]
[424393495,1780826348000,-497.31478204,0.00038642,120]
[424393496,1780826348000,-204.57942467,0.00038642,120]
[424393487,1780826348000,-500.0,0.00038642,120]
[424393497,1780826349000,-201.4806258,0.00038642,120]
[424393499,1780826349000,-352.30635273,0.00038642,120]
[424393498,1780826349000,-500.0,0.00038642,120]
[424393500,1780826349000,-500.0,0.00038642,120]
[424393501,1780826349000,-161.65740713,0.00038642,120]
[424393502,1780826349000,-449.44880925,0.00038642,120]
[424393503,1780826349000,-500.0,0.00038642,120]
[424393504,1780826349000,-201.10091087,0.00038642,120]
[424393507,1780826349000,-639.79838563,0.00038642,120]
[424393506,1780826349000,-288.09960121,0.00038642,120]
[424393509,1780826349000,-166.95921251,0.00038642,120]
[424393508,1780826349000,-190.1350905,0.00038642,120]
[424393510,1780826349000,-500.0,0.00038642,120]
[424393511,1780826349000,-240.8397887,0.00038642,120]
[424393512,1780826349000,-500.0,0.00038642,120]
[424393513,1780826349000,-500.0,0.00038642,120]
[424393505,1780826349000,-156.82362763,0.00038642,120]
[424393514,1780826350000,-606.32315116,0.00038642,120]
[424393516,1780826350000,-174.20417355,0.00038642,120]
[424393515,1780826350000,-500.0,0.00038642,120]
[424393517,1780826350000,-159.892857,0.00038642,120]
[424393518,1780826350000,-211.28208494,0.00038642,120]
[424393519,1780826350000,-425.04483244,0.00038642,120]
[424393520,1780826350000,-641.15061418,0.00038642,120]
[424393521,1780826350000,-360.0,0.00038642,120]
[424393523,1780826350000,-422.23462323,0.00038642,120]
[424393525,1780826350000,-275.22790566,0.00038642,120]
[424393524,1780826350000,-154.1428734,0.00038642,120]
[424393526,1780826350000,-253.5083749,0.00038642,120]
[424393527,1780826350000,-402.09672431,0.00038642,120]
[424393528,1780826350000,-431.45538798,0.00038642,120]
[424393529,1780826350000,-189.89294181,0.00038642,120]
[424393522,1780826350000,-500.0,0.00038642,120]
[424393530,1780826351000,-529.65443065,0.00038642,120]
[424393531,1780826351000,-284.45271973,0.00038642,120]
[424393532,1780826351000,-390.71525728,0.00038642,120]
[424393533,1780826351000,-426.60397533,0.00038642,120]
[424393534,1780826351000,-344.5870336,0.00038642,120]
[424393536,1780826351000,-500.0,0.00038642,120]
[424393535,1780826351000,-169.77066221,0.00038642,120]
[424393538,1780826351000,-246.94316609,0.00038642,120]
[424393537,1780826351000,-339.58573183,0.00038642,120]
[424393540,1780826351000,-478.59275467,0.00038642,120]
[424393547,1780826351000,-150.8077164,0.00038642,120]
[424393546,1780826351000,-385.75977688,0.00038642,120]
[424393544,1780826351000,-564.18923692,0.00038642,120]
[424393539,1780826351000,-383.13,0.00038642,120]
[424393543,1780826351000,-490.33359852,0.00038642,120]
[424393542,1780826351000,-440.18348751,0.00038642,120]
[424393541,1780826351000,-431.80618844,0.00038642,120]
[424393545,1780826351000,-558.15223307,0.00038642,120]
[424393555,1780826352000,-380.7,0.00038642,120]
[424393549,1780826352000,-427.53558113,0.00038642,120]
[424393550,1780826352000,-620.66706936,0.00038642,120]
[424393552,1780826352000,-175.73741567,0.00038642,120]
[424393551,1780826352000,-500.0,0.00038642,120]
[424393554,1780826352000,-276.68308966,0.00038642,120]
[424393553,1780826352000,-341.70272033,0.00038642,120]
[424393548,1780826352000,-529.19105026,0.00038642,120]
[424393556,1780826352000,-481.78480968,0.00038642,120]
[424393558,1780826352000,-169.09868525,0.00038642,120]
[424393559,1780826352000,-585.44233929,0.00038642,120]
[424393560,1780826352000,-500.0,0.00038642,120]
[424393561,1780826352000,-411.22943601,0.00038642,120]
[424393562,1780826352000,-500.0,0.00038642,120]
[424393563,1780826352000,-283.667859,0.00038642,120]
[424393565,1780826352000,-164.88117954,0.00038642,120]
[424393564,1780826352000,-500.0,0.00038642,120]
[424393557,1780826352000,-640.66937827,0.00038642,120]
[424393571,1780826353000,-288.5261396,0.00038642,120]
[424393572,1780826353000,-154.42596365,0.00038642,120]
[424393574,1780826353000,-199.62207899,0.00038642,120]
[424393567,1780826353000,-165.65525828,0.00038642,120]
[424393568,1780826353000,-495.4754594,0.00038642,120]
[424393566,1780826353000,-217.3702376,0.00038642,120]
[424393570,1780826353000,-262.39562969,0.00038642,120]
[424393573,1780826353000,-262.77499606,0.00038642,120]
[424393569,1780826353000,-283.69091617,0.00038642,120]
[424393577,1780826353000,-393.34181207,0.00038642,120]
[424393582,1780826353000,-533.88021847,0.00038642,120]
[424393583,1780826353000,-388.46578816,0.00038642,120]
[424393580,1780826353000,-216.62471433,0.00038642,120]
[424393575,1780826353000,-225.93342286,0.00038642,120]
[424393578,1780826353000,-375.9119543,0.00038642,120]
[424393579,1780826353000,-500.0,0.00038642,120]
[424393576,1780826353000,-500.0,0.00038642,120]
[424393581,1780826353000,-301.71766052,0.00038642,120]
[424393592,1780826354000,-236.44632206,0.00038642,120]
[424393585,1780826354000,-371.37994856,0.00038642,120]
[424393586,1780826354000,-488.88,0.00038642,120]
[424393587,1780826354000,-184.11390163,0.00038642,120]
[424393588,1780826354000,-152.12508311,0.00038642,120]
[424393590,1780826354000,-236.44632206,0.00038642,120]
[424393589,1780826354000,-184.11390163,0.00038642,120]
[424393591,1780826354000,-342.05915371,0.00038642,120]
[424393584,1780826354000,-500.0,0.00038642,120]
[424393593,1780826354000,-236.44632206,0.00038642,120]
[424393595,1780826354000,-225.74708542,0.00038642,120]
[424393597,1780826354000,-232.85650838,0.00038642,120]
[424393596,1780826354000,-500.0,0.00038642,120]
[424393598,1780826354000,-210.49236254,0.00038642,120]
[424393599,1780826354000,-161.18261998,0.00038642,120]
[424393601,1780826354000,-371.1517968,0.00038642,120]
[424393600,1780826354000,-500.0,0.00038642,120]
[424393594,1780826354000,-500.0,0.00038642,120]
[424393603,1780826355000,-500.0,0.00038642,120]
[424393602,1780826355000,-527.87040527,0.00038642,120]
[424393605,1780826355000,-166.76631399,0.00038642,120]
[424393604,1780826355000,-405.95959503,0.00038642,120]
[424393606,1780826355000,-297.31134912,0.00038642,120]
[424393608,1780826355000,-543.16828163,0.00038642,120]
[424393607,1780826355000,-497.9939782,0.00038642,120]
[424393609,1780826355000,-173.80428177,0.00038642,120]
[424393610,1780826355000,-216.48903049,0.00038642,120]
[424393612,1780826355000,-338.19343833,0.00038642,120]
[424393613,1780826355000,-206.74727715,0.00038642,120]
[424393614,1780826355000,-396.16157606,0.00038642,120]
[424393616,1780826355000,-195.91352342,0.00038642,120]
[424393615,1780826355000,-539.98630393,0.00038642,120]
[424393611,1780826355000,-500.0,0.00038642,120]
[424393623,1780826356000,-231.26845169,0.00038642,120]
[424393618,1780826356000,-229.25550544,0.00038642,120]
[424393617,1780826356000,-160.36129614,0.00038642,120]
[424393619,1780826356000,-563.32728044,0.00038642,120]
[424393620,1780826356000,-528.45417262,0.00038642,120]
[424393621,1780826356000,-471.72258774,0.00038642,120]
[424393622,1780826356000,-500.0,0.00038642,120]
[424393624,1780826356000,-291.22116897,0.00038642,120]
[424393633,1780826356000,-219.41188766,0.00038642,120]
[424393625,1780826356000,-287.06784638,0.00038642,120]
[424393627,1780826356000,-448.96355212,0.00038642,120]
[424393628,1780826356000,-355.22863036,0.00038642,120]
[424393630,1780826356000,-634.29386635,0.00038642,120]
[424393629,1780826356000,-499.02408091,0.00038642,120]
[424393631,1780826356000,-167.29654119,0.00038642,120]
[424393632,1780826356000,-251.22891586,0.00038642,120]
[424393626,1780826356000,-255.13840291,0.00038642,120]
[424393634,1780826357000,-332.97514014,0.00038642,120]
[424393635,1780826357000,-621.02334216,0.00038642,120]
[424393636,1780826357000,-500.0,0.00038642,120]
[424393637,1780826357000,-332.58104705,0.00038642,120]
[424393638,1780826357000,-255.52812801,0.00038642,120]
[424393639,1780826357000,-203.59391407,0.00038642,120]
[424393640,1780826357000,-214.89708505,0.00038642,120]
[424393641,1780826357000,-167.78959565,0.00038642,120]
[424393642,1780826357000,-177.75662266,0.00038642,120]
[424393644,1780826357000,-394.40822143,0.00038642,120]
[424393645,1780826357000,-261.79037098,0.00038642,120]
[424393646,1780826357000,-261.24738594,0.00038642,120]
[424393647,1780826357000,-245.2763557,0.00038642,120]
[424393648,1780826357000,-255.68284835,0.00038642,120]
[424393649,1780826357000,-500.0,0.00038642,120]
[424393650,1780826357000,-432.60759527,0.00038642,120]
[424393643,1780826357000,-462.21285446,0.00038642,120]
[424393656,1780826358000,-247.51484084,0.00038642,120]
[424393651,1780826358000,-192.60705792,0.00038642,120]
[424393652,1780826358000,-583.81637029,0.00038642,120]
[424393653,1780826358000,-273.92450363,0.00038642,120]
[424393655,1780826358000,-215.24281832,0.00038642,120]
[424393654,1780826358000,-182.10948971,0.00038642,120]
[424393657,1780826358000,-614.20629774,0.00038642,120]
[424393666,1780826358000,-302.75273141,0.00038642,120]
[424393659,1780826358000,-340.75155044,0.00038642,120]
[424393664,1780826358000,-453.02512186,0.00038642,120]
[424393665,1780826358000,-500.0,0.00038642,120]
[424393663,1780826358000,-196.66020201,0.00038642,120]
[424393658,1780826358000,-306.52196798,0.00038642,120]
[424393661,1780826358000,-500.0,0.00038642,120]
[424393660,1780826358000,-454.87538348,0.00038642,120]
[424393662,1780826358000,-162.30383004,0.00038642,120]
[424393667,1780826359000,-235.00623307,0.00038642,120]
[424393668,1780826359000,-500.0,0.00038642,120]
[424393669,1780826359000,-566.20360301,0.00038642,120]
[424393670,1780826359000,-370.44810736,0.00038642,120]
[424393671,1780826359000,-559.29510963,0.00038642,120]
[424393672,1780826359000,-227.11856013,0.00038642,120]
[424393673,1780826359000,-330.77726079,0.00038642,120]
[424393674,1780826359000,-471.80523924,0.00038642,120]
[424393684,1780826359000,-500.0,0.00038642,120]
[424393675,1780826359000,-258.82840801,0.00038642,120]
[424393683,1780826359000,-194.25373721,0.00038642,120]
[424393682,1780826359000,-207.35582814,0.00038642,120]
[424393681,1780826359000,-153.35856357,0.00038642,120]
[424393676,1780826359000,-500.0,0.00038642,120]
[424393679,1780826359000,-500.0,0.00038642,120]
[424393678,1780826359000,-361.77133907,0.00038642,120]
[424393677,1780826359000,-293.68913631,0.00038642,120]
[424393680,1780826359000,-324.94944573,0.00038642,120]
[424393686,1780826360000,-331.50451665,0.00038642,120]
[424393685,1780826360000,-567.0371641,0.00038642,120]
[424393688,1780826360000,-243.07149525,0.00038642,120]
[424393687,1780826360000,-328.68714532,0.00038642,120]
[424393689,1780826360000,-431.51,0.00038642,120]
[424393690,1780826360000,-416.52237325,0.00038642,120]
[424393691,1780826360000,-170.41314713,0.00038642,120]
[424393692,1780826360000,-368.58059936,0.00038642,120]
[424393694,1780826360000,-178.34026531,0.00038642,120]
[424393695,1780826360000,-500.0,0.00038642,120]
[424393696,1780826360000,-456.40017837,0.00038642,120]
[424393697,1780826360000,-374.56365942,0.00038642,120]
[424393699,1780826360000,-158.50343219,0.00038642,120]
[424393698,1780826360000,-346.25285695,0.00038642,120]
[424393700,1780826360000,-322.0694819,0.00038642,120]
[424393693,1780826360000,-550.05770979,0.00038642,120]
[424393701,1780826361000,-534.50058309,0.00038642,120]
[424393702,1780826361000,-500.0,0.00038642,120]
[424393704,1780826361000,-225.33790913,0.00038642,120]
[424393703,1780826361000,-230.00931539,0.00038642,120]
[424393706,1780826361000,-502.96715302,0.00038642,120]
[424393705,1780826361000,-177.42068409,0.00038642,120]
[424393707,1780826361000,-276.59793754,0.00038642,120]
[424393709,1780826361000,-192.66572529,0.00038642,120]
[424393710,1780826361000,-284.493373,0.00038642,120]
[424393711,1780826361000,-234.50021545,0.00038642,120]
[424393712,1780826361000,-185.5955494,0.00038642,120]
[424393714,1780826361000,-210.47112554,0.00038642,120]
[424393713,1780826361000,-471.14281908,0.00038642,120]
[424393715,1780826361000,-402.92418716,0.00038642,120]
[424393716,1780826361000,-583.04412125,0.00038642,120]
[424393717,1780826361000,-500.0,0.00038642,120]
[424393708,1780826361000,-500.0,0.00038642,120]
[424393724,1780826362000,-449.83,0.00038642,120]
[424393723,1780826362000,-151.75628169,0.00038642,120]
[424393722,1780826362000,-417.86971767,0.00038642,120]
[424393718,1780826362000,-416.30134827,0.00038642,120]
[424393720,1780826362000,-257.09559577,0.00038642,120]
[424393719,1780826362000,-500.0,0.00038642,120]
[424393721,1780826362000,-623.61224884,0.00038642,120]
[424393725,1780826362000,-500.0,0.00038642,120]
[424393728,1780826362000,-500.0,0.00038642,120]
[424393727,1780826362000,-453.75952138,0.00038642,120]
[424393729,1780826362000,-189.43634476,0.00038642,120]
[424393731,1780826362000,-500.0,0.00038642,120]
[424393730,1780826362000,-465.23556553,0.00038642,120]
[424393733,1780826362000,-273.62832452,0.00038642,120]
[424393732,1780826362000,-499.82524092,0.00038642,120]
[424393734,1780826362000,-219.94316249,0.00038642,120]
[424393726,1780826362000,-581.06592155,0.00038642,120]
[424393735,1780826363000,-371.14908732,0.00038642,120]
[424393736,1780826363000,-251.42561874,0.00038642,120]
[424393737,1780826363000,-548.88706621,0.00038642,120]
[424393738,1780826363000,-312.46967647,0.00038642,120]
[424393740,1780826363000,-186.71389925,0.00038642,120]
[424393739,1780826363000,-421.80228854,0.00038642,120]
[424393741,1780826363000,-420.67650285,0.00038642,120]
[424393743,1780826363000,-187.30694789,0.00038642,120]
[424393742,1780826363000,-576.7042832,0.00038642,120]
[424393744,1780826363000,-217.76243768,0.00038642,120]
[424393745,1780826363000,-487.06159963,0.00038642,120]
[424393746,1780826363000,-405.96530832,0.00038642,120]
[424393748,1780826363000,-500.0,0.00038642,120]
[424393747,1780826363000,-409.89606221,0.00038642,120]
[424393750,1780826363000,-423.84579331,0.00038642,120]
[424393749,1780826363000,-174.07588702,0.00038642,120]
[424393751,1780826364000,-397.08179641,0.00038642,120]
[424393753,1780826364000,-472.08024308,0.00038642,120]
[424393754,1780826364000,-242.46698793,0.00038642,120]
[424393755,1780826364000,-608.525515,0.00038642,120]
[424393756,1780826364000,-500.0,0.00038642,120]
[424393757,1780826364000,-257.92329216,0.00038642,120]
[424393758,1780826364000,-353.44202199,0.00038642,120]
[424393759,1780826364000,-454.0,0.00038642,120]
[424393752,1780826364000,-412.67922661,0.00038642,120]
[424393761,1780826364000,-155.45045855,0.00038642,120]
[424393762,1780826364000,-397.14,0.00038642,120]
[424393764,1780826364000,-391.5022162,0.00038642,120]
[424393763,1780826364000,-496.65362653,0.00038642,120]
[424393765,1780826364000,-500.0,0.00038642,120]
[424393766,1780826364000,-500.0,0.00038642,120]
[424393767,1780826364000,-286.40241355,0.00038642,120]
[424393768,1780826364000,-500.0,0.00038642,120]
[424393760,1780826364000,-533.80609908,0.00038642,120]
[424393769,1780826365000,-473.5750425,0.00038642,120]
[424393770,1780826365000,-401.99018263,0.00038642,120]
[424393771,1780826365000,-242.1496279,0.00038642,120]
[424393772,1780826365000,-362.65204447,0.00038642,120]
[424393773,1780826365000,-564.64270347,0.00038642,120]
[424393774,1780826365000,-295.12087072,0.00038642,120]
[424393775,1780826365000,-241.357856,0.00038642,120]
[424393776,1780826365000,-251.4286544,0.00038642,120]
[424393778,1780826365000,-173.82897946,0.00038642,120]
[424393777,1780826365000,-500.0,0.00038642,120]
[424393780,1780826365000,-162.58533165,0.00038642,120]
[424393779,1780826365000,-500.0,0.00038642,120]
[424393781,1780826365000,-561.69725681,0.00038642,120]
[424393782,1780826365000,-351.8892832,0.00038642,120]
[424393783,1780826366000,-589.08080404,0.00038642,120]
[424393784,1780826366000,-280.9921982,0.00038642,120]
[424393785,1780826366000,-177.15244175,0.00038642,120]
[424393786,1780826366000,-604.33586405,0.00038642,120]
[424393787,1780826366000,-169.24620923,0.00038642,120]
[424393788,1780826366000,-244.76195317,0.00038642,120]
[424393790,1780826366000,-531.24872741,0.00038642,120]
[424393789,1780826366000,-527.11722869,0.00038642,120]
[424393798,1780826366000,-571.57238475,0.00038642,120]
[424393791,1780826366000,-249.25586264,0.00038642,120]
[424393794,1780826366000,-205.62407448,0.00038642,120]
[424393793,1780826366000,-230.17400112,0.00038642,120]
[424393795,1780826366000,-564.25752853,0.00038642,120]